[Event "Late-Titled-Tuesday-Blitz-May-07-2024"]
[Site "Chess.com"]
[Date "2024.05.07"]
[Round "9"]
[White "rhwr"]
[Black "RespectfulDaveOnYouTube"]
[Result "0-1"]
[WhiteElo "2285"]
[BlackElo "2424"]
[TimeControl "180+1"]
[EndTime "15:47:15 PDT"]
[Termination "RespectfulDaveOnYouTube won on time"]

1. e4 {[%clk 0:03:00.9]} 1... d5 {[%clk 0:02:58.5]} 2. exd5 {[%clk 0:03:00.3]}
2... c6 {[%clk 0:02:58.3]} 3. d4 {[%clk 0:02:56.4]} 3... cxd5 {[%clk 0:02:55.5]}
4. Bd3 {[%clk 0:02:56]} 4... Nc6 {[%clk 0:02:52.5]} 5. c3 {[%clk 0:02:55.5]}
5... Nf6 {[%clk 0:02:52.5]} 6. Nf3 {[%clk 0:02:55.5]} 6... Bg4 {[%clk
0:02:52.4]} 7. O-O {[%clk 0:02:55.5]} 7... e6 {[%clk 0:02:46.5]} 8. Nbd2 {[%clk
0:02:54.9]} 8... Bd6 {[%clk 0:02:46.2]} 9. h3 {[%clk 0:02:54.2]} 9... Bh5 {[%clk
0:02:46.2]} 10. Qb3 {[%clk 0:02:52.4]} 10... O-O {[%clk 0:02:41.2]} 11. Re1
{[%clk 0:02:40.7]} 11... a6 {[%clk 0:02:38.3]} 12. a4 {[%clk 0:02:39]} 12... Qc7
{[%clk 0:02:11]} 13. Be2 {[%clk 0:02:02.3]} 13... Rfe8 {[%clk 0:02:08]} 14. Nf1
{[%clk 0:02:00.3]} 14... e5 {[%clk 0:02:07.1]} 15. dxe5 {[%clk 0:01:57.9]} 15...
Nxe5 {[%clk 0:02:07.2]} 16. Nxe5 {[%clk 0:01:56.8]} 16... Rxe5 {[%clk
0:02:06.3]} 17. Ne3 {[%clk 0:01:52.3]} 17... Bxe2 {[%clk 0:02:04]} 18. Rxe2
{[%clk 0:01:51.2]} 18... Rae8 {[%clk 0:02:03.3]} 19. Bd2 {[%clk 0:01:46.5]}
19... Ne4 {[%clk 0:01:27.1]} 20. Nxd5 {[%clk 0:01:17.7]} 20... Nxd2 {[%clk
0:01:01.7]} 21. Nxc7 {[%clk 0:00:45.3]} 21... Nxb3 {[%clk 0:01:00.1]} 22. Nxe8
{[%clk 0:00:20.3]} 22... Rxe2 {[%clk 0:00:56.7]} 23. Rd1 {[%clk 0:00:18]} 23...
Rxe8 {[%clk 0:00:56.1]} 24. Rxd6 {[%clk 0:00:17.2]} 24... g6 {[%clk 0:00:55]}
25. Rd7 {[%clk 0:00:17]} 25... Nc5 {[%clk 0:00:50.1]} 26. Rc7 {[%clk 0:00:17]}
26... Re1+ {[%clk 0:00:49.1]} 27. Kh2 {[%clk 0:00:16.6]} 27... Re5 {[%clk
0:00:44.8]} 28. a5 {[%clk 0:00:16]} 28... Nd3 {[%clk 0:00:39]} 29. b4 {[%clk
0:00:14.8]} 29... Rb5 {[%clk 0:00:34.7]} 30. Kg3 {[%clk 0:00:14.6]} 30... Kg7
{[%clk 0:00:30.3]} 31. Kf3 {[%clk 0:00:14.6]} 31... Ne5+ {[%clk 0:00:29.2]} 32.
Ke4 {[%clk 0:00:14.6]} 32... Nc6 {[%clk 0:00:29]} 33. f4 {[%clk 0:00:11.1]}
33... Kf6 {[%clk 0:00:29.3]} 34. g4 {[%clk 0:00:10.7]} 34... Ke6 {[%clk
0:00:29.5]} 35. Rc8 {[%clk 0:00:04.7]} 35... h5 {[%clk 0:00:27.1]} 36. Re8+
{[%clk 0:00:03]} 36... Kd7 {[%clk 0:00:27.3]} 37. Rf8 {[%clk 0:00:02.8]} 37...
Ke7 {[%clk 0:00:27.3]} 38. Rg8 {[%clk 0:00:02.4]} 38... Nd8 {[%clk 0:00:18.3]}
39. Rh8 {[%clk 0:00:01.1]} 39... hxg4 {[%clk 0:00:17.8]} 40. hxg4 {[%clk
0:00:01]} 40... Ne6 {[%clk 0:00:17.1]} 41. Rh3 {[%clk 0:00:01.3]} 41... f5+
{[%clk 0:00:16.2]} 42. gxf5 {[%clk 0:00:00.5]} 42... gxf5+ {[%clk 0:00:17.1]}
43. Kf3 {[%clk 0:00:00.5]} 43... Kd6 {[%clk 0:00:11.4]} 44. Rh7 {[%clk
0:00:01.4]} 44... Nc7 {[%clk 0:00:09.7]} 45. Rh6+ {[%clk 0:00:02.3]} 45... Kd7
{[%clk 0:00:09.3]} 46. Rh7+ {[%clk 0:00:02.5]} 46... Kc6 {[%clk 0:00:09.8]} 47.
Rh6+ {[%clk 0:00:02.9]} 47... Kd5 {[%clk 0:00:10.3]} 48. Rh5 {[%clk 0:00:03]}
48... Kc4 {[%clk 0:00:10.1]} 49. Rh3 {[%clk 0:00:02.3]} 49... Nd5 {[%clk
0:00:10.5]} 50. Kf2 {[%clk 0:00:03.2]} 50... Nxc3 {[%clk 0:00:10.8]} 51. Re3
{[%clk 0:00:02.5]} 51... Ne4+ {[%clk 0:00:11.2]} 52. Kf3 {[%clk 0:00:02]} 52...
Rxb4 {[%clk 0:00:11.5]} 0-1

[Event "Late-Titled-Tuesday-Blitz-May-07-2024"]
[Site "Chess.com"]
[Date "2024.05.07"]
[Round "9"]
[White "sofaceindisguise"]
[Black "Reyson01"]
[Result "1-0"]
[WhiteElo "2732"]
[BlackElo "2528"]
[TimeControl "180+1"]
[EndTime "15:47:19 PDT"]
[Termination "sofaceindisguise won by resignation"]

1. d4 {[%clk 0:03:00.9]} 1... Nf6 {[%clk 0:02:57.9]} 2. Nf3 {[%clk 0:02:58.8]}
2... e6 {[%clk 0:02:57]} 3. c4 {[%clk 0:02:59.1]} 3... b6 {[%clk 0:02:57.5]} 4.
g3 {[%clk 0:02:59.7]} 4... Ba6 {[%clk 0:02:57.8]} 5. Nbd2 {[%clk 0:02:56.5]}
5... Bb7 {[%clk 0:02:54.6]} 6. Bg2 {[%clk 0:02:51]} 6... c5 {[%clk 0:02:54.2]}
7. dxc5 {[%clk 0:02:49.7]} 7... Bxc5 {[%clk 0:02:51.4]} 8. O-O {[%clk
0:02:49.5]} 8... O-O {[%clk 0:02:50.3]} 9. Nb3 {[%clk 0:02:48.5]} 9... Be7
{[%clk 0:02:44.1]} 10. Bf4 {[%clk 0:02:47.8]} 10... d5 {[%clk 0:02:42.7]} 11.
Ne5 {[%clk 0:02:43.1]} 11... Nbd7 {[%clk 0:02:41.9]} 12. Rc1 {[%clk 0:02:39.1]}
12... Nxe5 {[%clk 0:02:39.9]} 13. Bxe5 {[%clk 0:02:37.7]} 13... Rc8 {[%clk
0:02:40.5]} 14. cxd5 {[%clk 0:02:33.1]} 14... Bxd5 {[%clk 0:02:41.4]} 15. Bxf6
{[%clk 0:02:32.8]} 15... Rxc1 {[%clk 0:02:29.4]} 16. Nxc1 {[%clk 0:02:27.8]}
16... Bxf6 {[%clk 0:02:22]} 17. Bxd5 {[%clk 0:02:23.1]} 17... exd5 {[%clk
0:02:22.9]} 18. Nd3 {[%clk 0:02:21.5]} 18... Re8 {[%clk 0:02:21.4]} 19. Qc2
{[%clk 0:02:17.3]} 19... Qc8 {[%clk 0:02:02]} 20. Rc1 {[%clk 0:02:12.4]} 20...
Qxc2 {[%clk 0:01:51.7]} 21. Rxc2 {[%clk 0:02:10.6]} 21... g6 {[%clk 0:01:52.3]}
22. Kg2 {[%clk 0:02:09.1]} 22... Kg7 {[%clk 0:01:47.9]} 23. Kf3 {[%clk 0:01:50]}
23... a5 {[%clk 0:01:43.2]} 24. e3 {[%clk 0:01:45.2]} 24... a4 {[%clk
0:01:39.4]} 25. Rc6 {[%clk 0:01:43.4]} 25... Rb8 {[%clk 0:01:33.4]} 26. Rd6
{[%clk 0:01:39]} 26... a3 {[%clk 0:01:33.2]} 27. b3 {[%clk 0:01:29.9]} 27... Rc8
{[%clk 0:01:27.8]} 28. Rxb6 {[%clk 0:01:24.8]} 28... Be7 {[%clk 0:01:15.3]} 29.
Rb7 {[%clk 0:01:16.6]} 29... Kf8 {[%clk 0:01:09.7]} 30. Ra7 {[%clk 0:01:14.6]}
30... Rc2 {[%clk 0:01:08.1]} 31. b4 {[%clk 0:01:14.3]} 31... Rxa2 {[%clk
0:01:07.2]} 32. b5 {[%clk 0:01:14.3]} 32... Rb2 {[%clk 0:01:06.2]} 33. Ra5
{[%clk 0:00:56]} 33... Rb3 {[%clk 0:00:59.3]} 34. Nf4 {[%clk 0:00:54.3]} 34...
Kg7 {[%clk 0:00:25.4]} 35. Nxd5 {[%clk 0:00:51.6]} 35... Bd8 {[%clk 0:00:26]}
36. Ra8 {[%clk 0:00:47.5]} 36... Rxb5 {[%clk 0:00:23.5]} 37. Rxd8 {[%clk
0:00:47.1]} 37... a2 {[%clk 0:00:22.2]} 38. Ra8 {[%clk 0:00:43.7]} 38... Rxd5
{[%clk 0:00:22.8]} 39. Rxa2 {[%clk 0:00:44.1]} 39... h5 {[%clk 0:00:20.1]} 40.
Kg2 {[%clk 0:00:40.2]} 40... Rb5 {[%clk 0:00:19.8]} 41. e4 {[%clk 0:00:40]}
41... Rb3 {[%clk 0:00:20.3]} 42. e5 {[%clk 0:00:39.7]} 42... Rb5 {[%clk
0:00:18.1]} 43. f4 {[%clk 0:00:40]} 43... Rb3 {[%clk 0:00:18.7]} 44. Ra7 {[%clk
0:00:39.7]} 44... Kg8 {[%clk 0:00:18.3]} 45. Kh3 {[%clk 0:00:39.9]} 45... Rb2
{[%clk 0:00:18]} 46. Kh4 {[%clk 0:00:40.5]} 46... Rxh2+ {[%clk 0:00:17.4]} 47.
Kg5 {[%clk 0:00:41.1]} 47... Rb2 {[%clk 0:00:15.9]} 48. Kh6 {[%clk 0:00:33.6]}
48... Rb8 {[%clk 0:00:13]} 49. e6 {[%clk 0:00:32.3]} 49... fxe6 {[%clk
0:00:12.5]} 50. Kxg6 {[%clk 0:00:32.8]} 50... Rf8 {[%clk 0:00:06.7]} 51. Kxh5
{[%clk 0:00:28.4]} 51... Rf7 {[%clk 0:00:06]} 52. Rxf7 {[%clk 0:00:26.9]} 52...
Kxf7 {[%clk 0:00:06.9]} 53. g4 {[%clk 0:00:27.3]} 53... Kf6 {[%clk 0:00:04.7]}
54. Kh6 {[%clk 0:00:27.2]} 54... Ke7 {[%clk 0:00:01.8]} 55. g5 {[%clk
0:00:26.4]} 55... Kf7 {[%clk 0:00:02.7]} 56. Kh7 {[%clk 0:00:26.8]} 56... e5
{[%clk 0:00:02.7]} 57. fxe5 {[%clk 0:00:27.7]} 57... Ke6 {[%clk 0:00:03.2]} 58.
g6 {[%clk 0:00:28.5]} 58... Kxe5 {[%clk 0:00:04.1]} 59. g7 {[%clk 0:00:28.3]}
1-0

[Event "Late-Titled-Tuesday-Blitz-May-07-2024"]
[Site "Chess.com"]
[Date "2024.05.07"]
[Round "9"]
[White "ACollins05"]
[Black "RuperezA"]
[Result "1/2-1/2"]
[WhiteElo "2543"]
[BlackElo "2650"]
[TimeControl "180+1"]
[EndTime "15:47:19 PDT"]
[Termination "Game drawn - insufficient material"]

1. Nf3 {[%clk 0:03:00.9]} 1... d5 {[%clk 0:02:54.2]} 2. e3 {[%clk 0:03:00.9]}
2... Nf6 {[%clk 0:02:55.1]} 3. b3 {[%clk 0:03:00.4]} 3... e6 {[%clk 0:02:53.6]}
4. Bb2 {[%clk 0:03:00.7]} 4... Be7 {[%clk 0:02:54.5]} 5. Be2 {[%clk 0:03:00.6]}
5... O-O {[%clk 0:02:55.4]} 6. O-O {[%clk 0:03:01]} 6... Nbd7 {[%clk 0:02:56]}
7. d4 {[%clk 0:03:01.6]} 7... b6 {[%clk 0:02:56.7]} 8. c4 {[%clk 0:03:02.2]}
8... Bb7 {[%clk 0:02:57]} 9. Nbd2 {[%clk 0:03:02.9]} 9... dxc4 {[%clk
0:02:55.9]} 10. Nxc4 {[%clk 0:03:01.8]} 10... c5 {[%clk 0:02:56.8]} 11. Rc1
{[%clk 0:03:00.2]} 11... Rc8 {[%clk 0:02:56.2]} 12. dxc5 {[%clk 0:02:56.9]}
12... Nxc5 {[%clk 0:02:57.1]} 13. Qc2 {[%clk 0:02:54]} 13... Be4 {[%clk
0:02:50.8]} 14. Qd2 {[%clk 0:02:53.5]} 14... Nd3 {[%clk 0:02:45.6]} 15. Bxd3
{[%clk 0:02:49.7]} 15... Qxd3 {[%clk 0:02:40.1]} 16. Rfd1 {[%clk 0:02:46.3]}
16... Qxd2 {[%clk 0:02:35]} 17. Ncxd2 {[%clk 0:02:47.2]} 17... Bb7 {[%clk
0:02:26.9]} 18. Nc4 {[%clk 0:02:46]} 18... Rfd8 {[%clk 0:02:24.3]} 19. Nfe5
{[%clk 0:02:42.3]} 19... Nd5 {[%clk 0:02:22.3]} 20. Rd2 {[%clk 0:01:52.2]} 20...
f6 {[%clk 0:02:12.5]} 21. Nf3 {[%clk 0:01:49.8]} 21... Bb4 {[%clk 0:01:55.4]}
22. Rdd1 {[%clk 0:01:49.5]} 22... b5 {[%clk 0:01:45.9]} 23. Na3 {[%clk
0:01:44.8]} 23... a6 {[%clk 0:01:43.4]} 24. Nc2 {[%clk 0:01:42.3]} 24... Bc3
{[%clk 0:01:41.4]} 25. Bxc3 {[%clk 0:01:40.5]} 25... Nxc3 {[%clk 0:01:42.3]} 26.
Rxd8+ {[%clk 0:01:40]} 26... Rxd8 {[%clk 0:01:43.2]} 27. Kf1 {[%clk 0:01:39]}
27... Nxa2 {[%clk 0:01:40.8]} 28. Ra1 {[%clk 0:01:38.1]} 28... Nc3 {[%clk
0:01:40]} 29. Nb4 {[%clk 0:01:35.5]} 29... Nd5 {[%clk 0:01:33.3]} 30. Nxd5
{[%clk 0:01:29.2]} 30... Rxd5 {[%clk 0:01:25.7]} 31. Nd4 {[%clk 0:01:29]} 31...
e5 {[%clk 0:01:24.2]} 32. Ne6 {[%clk 0:01:24.5]} 32... Rd2 {[%clk 0:01:19.5]}
33. Nc5 {[%clk 0:01:22.9]} 33... Bc8 {[%clk 0:01:14.5]} 34. Nxa6 {[%clk
0:01:22.8]} 34... Bxa6 {[%clk 0:01:13.3]} 35. Rxa6 {[%clk 0:01:23.7]} 35... Rb2
{[%clk 0:01:13.5]} 36. g4 {[%clk 0:01:22.9]} 36... Rxb3 {[%clk 0:01:12.6]} 37.
Ra7 {[%clk 0:01:22.5]} 37... h6 {[%clk 0:01:06.7]} 38. Rb7 {[%clk 0:01:20.9]}
38... Kh7 {[%clk 0:01:05.6]} 39. Kg2 {[%clk 0:01:20.1]} 39... h5 {[%clk
0:01:02.4]} 40. gxh5 {[%clk 0:01:18.5]} 40... Kh6 {[%clk 0:01:02.7]} 41. Kg3
{[%clk 0:01:18.6]} 41... Rb1 {[%clk 0:01:02.3]} 42. Kg2 {[%clk 0:01:12.8]} 42...
b4 {[%clk 0:01:00.9]} 43. f4 {[%clk 0:01:09]} 43... e4 {[%clk 0:00:55.3]} 44.
Re7 {[%clk 0:01:04.5]} 44... f5 {[%clk 0:00:46]} 45. Re5 {[%clk 0:01:04.1]}
45... Rb2+ {[%clk 0:00:32]} 46. Kg3 {[%clk 0:00:52.4]} 46... Re2 {[%clk
0:00:29.1]} 47. Rxf5 {[%clk 0:00:51.8]} 47... Rxe3+ {[%clk 0:00:30]} 48. Kg4
{[%clk 0:00:46.4]} 48... Re2 {[%clk 0:00:18.3]} 49. Rb5 {[%clk 0:00:44.2]} 49...
Rg2+ {[%clk 0:00:18.5]} 50. Kh3 {[%clk 0:00:44.2]} 50... Rb2 {[%clk 0:00:19.4]}
51. Kg3 {[%clk 0:00:42.7]} 51... e3 {[%clk 0:00:18.4]} 52. Kf3 {[%clk 0:00:43]}
52... e2 {[%clk 0:00:19.3]} 53. Kf2 {[%clk 0:00:43.4]} 53... b3 {[%clk
0:00:19.5]} 54. h3 {[%clk 0:00:36.8]} 54... Kh7 {[%clk 0:00:16.1]} 55. Rb6
{[%clk 0:00:36.6]} 55... Rb1 {[%clk 0:00:11.3]} 56. Kxe2 {[%clk 0:00:32.7]}
56... b2 {[%clk 0:00:11.9]} 57. Kd2 {[%clk 0:00:32.6]} 57... Rh1 {[%clk
0:00:05.3]} 58. Rxb2 {[%clk 0:00:32.4]} 58... Rh2+ {[%clk 0:00:04.1]} 59. Kc3
{[%clk 0:00:30.5]} 59... Rxb2 {[%clk 0:00:05]} 60. Kxb2 {[%clk 0:00:30]} 60...
Kh6 {[%clk 0:00:05.9]} 61. Kc3 {[%clk 0:00:29.5]} 61... Kxh5 {[%clk 0:00:06.4]}
62. Kd4 {[%clk 0:00:30]} 62... Kh4 {[%clk 0:00:07.3]} 63. Ke5 {[%clk 0:00:30]}
63... Kxh3 {[%clk 0:00:08]} 64. Kf5 {[%clk 0:00:30.4]} 64... Kg3 {[%clk
0:00:08.5]} 65. Kg5 {[%clk 0:00:30.5]} 65... g6 {[%clk 0:00:09]} 66. f5 {[%clk
0:00:28.6]} 66... gxf5 {[%clk 0:00:08.9]} 67. Kxf5 {[%clk 0:00:29.5]} 1/2-1/2

[Event "Late-Titled-Tuesday-Blitz-May-07-2024"]
[Site "Chess.com"]
[Date "2024.05.07"]
[Round "9"]
[White "DominguezOnYoutube"]
[Black "ChessWarrior7197"]
[Result "0-1"]
[WhiteElo "3021"]
[BlackElo "3152"]
[TimeControl "180+1"]
[EndTime "15:47:22 PDT"]
[Termination "ChessWarrior7197 won by resignation"]

1. e4 {[%clk 0:03:00.9]} 1... d6 {[%clk 0:03:00.6]} 2. d4 {[%clk 0:03:00.3]}
2... Nf6 {[%clk 0:03:01.3]} 3. Nc3 {[%clk 0:03:00.8]} 3... e5 {[%clk 0:03:02]}
4. Nf3 {[%clk 0:03:00]} 4... Nbd7 {[%clk 0:03:02.4]} 5. Bc4 {[%clk 0:03:00]}
5... Be7 {[%clk 0:03:03.1]} 6. a4 {[%clk 0:02:59.9]} 6... O-O {[%clk 0:03:03.7]}
7. O-O {[%clk 0:03:00.2]} 7... c6 {[%clk 0:03:04.3]} 8. Re1 {[%clk 0:03:00.1]}
8... h6 {[%clk 0:03:05]} 9. h3 {[%clk 0:03:00.1]} 9... Re8 {[%clk 0:03:05.5]}
10. Be3 {[%clk 0:02:57.7]} 10... exd4 {[%clk 0:03:02.4]} 11. Bxd4 {[%clk
0:02:51.7]} 11... Nf8 {[%clk 0:03:02.2]} 12. Qd3 {[%clk 0:02:37.2]} 12... Be6
{[%clk 0:03:00.7]} 13. Rad1 {[%clk 0:02:31.5]} 13... Qa5 {[%clk 0:02:54.4]} 14.
Bb3 {[%clk 0:02:06.6]} 14... Rad8 {[%clk 0:02:48.2]} 15. Nd2 {[%clk 0:01:42.3]}
15... Qc7 {[%clk 0:02:40.2]} 16. Nc4 {[%clk 0:01:20.7]} 16... b6 {[%clk
0:02:35.4]} 17. Ne3 {[%clk 0:01:16.3]} 17... N6d7 {[%clk 0:02:25.1]} 18. Nf5
{[%clk 0:01:02.7]} 18... Bxf5 {[%clk 0:02:24.2]} 19. exf5 {[%clk 0:01:03.6]}
19... d5 {[%clk 0:02:10.4]} 20. Bxd5 {[%clk 0:00:41.2]} 20... cxd5 {[%clk
0:02:09.2]} 21. Nxd5 {[%clk 0:00:18.9]} 21... Qd6 {[%clk 0:02:09.4]} 22. Rxe7
{[%clk 0:00:14]} 22... Rxe7 {[%clk 0:01:49.8]} 23. Qg3 {[%clk 0:00:12.7]} 23...
Re5 {[%clk 0:01:28.9]} 24. Bxe5 {[%clk 0:00:12.4]} 24... Nxe5 {[%clk 0:01:28.9]}
25. f6 {[%clk 0:00:12.7]} 25... Neg6 {[%clk 0:00:58.8]} 26. Qxd6 {[%clk
0:00:11.9]} 26... Rxd6 {[%clk 0:00:59.7]} 27. Ne7+ {[%clk 0:00:12.3]} 27... Nxe7
{[%clk 0:01:00.4]} 28. Rxd6 {[%clk 0:00:12.3]} 28... gxf6 {[%clk 0:01:01.2]} 29.
a5 {[%clk 0:00:11.3]} 29... bxa5 {[%clk 0:00:50.7]} 30. Ra6 {[%clk 0:00:11.2]}
30... Ne6 {[%clk 0:00:51.4]} 31. Rxa7 {[%clk 0:00:09.9]} 31... Nc6 {[%clk
0:00:51.3]} 32. Ra6 {[%clk 0:00:10.3]} 32... Nb4 {[%clk 0:00:51.8]} 33. Rxa5
{[%clk 0:00:08.2]} 33... Nxc2 {[%clk 0:00:52.1]} 34. Rb5 {[%clk 0:00:08.1]}
34... Kg7 {[%clk 0:00:52.2]} 35. b4 {[%clk 0:00:07.9]} 35... Na3 {[%clk
0:00:47.6]} 36. Rb8 {[%clk 0:00:07.4]} 36... Nd4 {[%clk 0:00:47.8]} 37. Rd8
{[%clk 0:00:05.9]} 37... Nab5 {[%clk 0:00:47.9]} 38. Rd5 {[%clk 0:00:05.4]}
38... f5 {[%clk 0:00:47.9]} 39. g4 {[%clk 0:00:04.4]} 39... Kf6 {[%clk
0:00:39.9]} 40. Kg2 {[%clk 0:00:04]} 40... Ke6 {[%clk 0:00:39.3]} 41. Rc5 {[%clk
0:00:04.4]} 41... Nd6 {[%clk 0:00:38.5]} 42. Rc7 {[%clk 0:00:02.2]} 42... f4
{[%clk 0:00:38.1]} 43. Ra7 {[%clk 0:00:01.7]} 43... Ne4 {[%clk 0:00:38]} 44. f3
{[%clk 0:00:02]} 44... Nd2 {[%clk 0:00:37.1]} 45. Ra6+ {[%clk 0:00:02.3]} 45...
Kd5 {[%clk 0:00:34.7]} 46. Rxh6 {[%clk 0:00:02.8]} 46... N2xf3 {[%clk
0:00:35.3]} 47. b5 {[%clk 0:00:02.8]} 47... Ne1+ {[%clk 0:00:33.6]} 48. Kf1
{[%clk 0:00:03.2]} 48... Nd3 {[%clk 0:00:22.5]} 49. b6 {[%clk 0:00:04.1]} 49...
Nc5 {[%clk 0:00:23]} 50. Rh5+ {[%clk 0:00:04.1]} 50... Kc4 {[%clk 0:00:19.4]}
51. Rxc5+ {[%clk 0:00:02.7]} 51... Kxc5 {[%clk 0:00:20.3]} 52. b7 {[%clk
0:00:03.3]} 52... Nc6 {[%clk 0:00:21.1]} 53. h4 {[%clk 0:00:03.8]} 53... Kb6
{[%clk 0:00:21.6]} 54. h5 {[%clk 0:00:04.3]} 54... Kxb7 {[%clk 0:00:22.2]} 55.
Kf2 {[%clk 0:00:04.7]} 55... Ne5 {[%clk 0:00:22.7]} 56. g5 {[%clk 0:00:04.9]}
56... Kc6 {[%clk 0:00:22.5]} 57. h6 {[%clk 0:00:05.2]} 57... Kd5 {[%clk
0:00:22.6]} 58. h7 {[%clk 0:00:05.8]} 58... Ng6 {[%clk 0:00:23.1]} 59. Kf3
{[%clk 0:00:06.5]} 59... Ke5 {[%clk 0:00:23.8]} 60. Kg4 {[%clk 0:00:07.4]} 60...
Ke4 {[%clk 0:00:24.3]} 61. Kh5 {[%clk 0:00:07.9]} 61... f3 {[%clk 0:00:25]} 62.
Kh6 {[%clk 0:00:08.1]} 62... f2 {[%clk 0:00:25.6]} 63. Kg7 {[%clk 0:00:09]}
63... f1=Q {[%clk 0:00:26.1]} 0-1

[Event "Late-Titled-Tuesday-Blitz-May-07-2024"]
[Site "Chess.com"]
[Date "2024.05.07"]
[Round "9"]
[White "Oleksandr_Bortnyk"]
[Black "AlexeiShirov"]
[Result "1-0"]
[WhiteElo "3078"]
[BlackElo "2901"]
[TimeControl "180+1"]
[EndTime "15:47:22 PDT"]
[Termination "Oleksandr_Bortnyk won on time"]

1. e4 {[%clk 0:03:00.3]} 1... e5 {[%clk 0:02:59.1]} 2. Bc4 {[%clk 0:02:57.4]}
2... Nf6 {[%clk 0:02:57.3]} 3. d3 {[%clk 0:02:57.8]} 3... Bc5 {[%clk 0:02:55.4]}
4. Nc3 {[%clk 0:02:57.9]} 4... d6 {[%clk 0:02:50.4]} 5. Bg5 {[%clk 0:02:57.4]}
5... h6 {[%clk 0:02:48.8]} 6. Bh4 {[%clk 0:02:57.6]} 6... Nc6 {[%clk 0:02:46.1]}
7. Nf3 {[%clk 0:02:38.6]} 7... g5 {[%clk 0:02:39.4]} 8. Bg3 {[%clk 0:02:38.7]}
8... Bg4 {[%clk 0:02:34.8]} 9. h3 {[%clk 0:02:31.8]} 9... Bh5 {[%clk 0:02:33.8]}
10. h4 {[%clk 0:02:03.7]} 10... g4 {[%clk 0:02:32.9]} 11. Nh2 {[%clk 0:01:57.1]}
11... Nd4 {[%clk 0:02:27.9]} 12. a3 {[%clk 0:01:54.5]} 12... Qd7 {[%clk
0:02:22.4]} 13. Ne2 {[%clk 0:01:54.5]} 13... O-O-O {[%clk 0:02:19.3]} 14. c3
{[%clk 0:01:50.4]} 14... Nxe2 {[%clk 0:02:13.2]} 15. Qxe2 {[%clk 0:01:51.3]}
15... d5 {[%clk 0:02:10.4]} 16. exd5 {[%clk 0:01:36.3]} 16... Nxd5 {[%clk
0:02:10.3]} 17. O-O-O {[%clk 0:01:36.7]} 17... Rhe8 {[%clk 0:02:06.3]} 18. Rhe1
{[%clk 0:01:34.6]} 18... f5 {[%clk 0:02:00.7]} 19. Bxe5 {[%clk 0:01:26.9]} 19...
Nf4 {[%clk 0:01:57.3]} 20. Qf1 {[%clk 0:01:15.6]} 20... g3 {[%clk 0:01:47]} 21.
fxg3 {[%clk 0:00:54]} 21... Bxd1 {[%clk 0:01:45.7]} 22. gxf4 {[%clk 0:00:47.3]}
22... Bh5 {[%clk 0:01:37.4]} 23. d4 {[%clk 0:00:47.6]} 23... Bf8 {[%clk
0:01:31.8]} 24. Bb5 {[%clk 0:00:45.7]} 24... c6 {[%clk 0:01:30.2]} 25. Bd3
{[%clk 0:00:46.3]} 25... Bf7 {[%clk 0:01:21.7]} 26. Nf3 {[%clk 0:00:42.5]} 26...
Bd5 {[%clk 0:01:06.1]} 27. Re3 {[%clk 0:00:31.6]} 27... c5 {[%clk 0:00:55.8]}
28. Qe2 {[%clk 0:00:28.9]} 28... Bd6 {[%clk 0:00:51.1]} 29. Bxd6 {[%clk
0:00:24.7]} 29... Rxe3 {[%clk 0:00:49.9]} 30. Qxe3 {[%clk 0:00:25.6]} 30... Qxd6
{[%clk 0:00:49]} 31. Bxf5+ {[%clk 0:00:25.9]} 31... Kc7 {[%clk 0:00:46.1]} 32.
dxc5 {[%clk 0:00:24.4]} 32... Qf6 {[%clk 0:00:45.9]} 33. Nd4 {[%clk 0:00:21.7]}
33... Bf7 {[%clk 0:00:36.2]} 34. Qe5+ {[%clk 0:00:15.9]} 34... Qxe5 {[%clk
0:00:34.1]} 35. fxe5 {[%clk 0:00:16.8]} 35... Rd5 {[%clk 0:00:28]} 36. e6 {[%clk
0:00:16.7]} 36... Be8 {[%clk 0:00:27.5]} 37. b4 {[%clk 0:00:17.1]} 37... h5
{[%clk 0:00:22.3]} 38. Kd2 {[%clk 0:00:15.8]} 38... Re5 {[%clk 0:00:21]} 39. Bc2
{[%clk 0:00:06.9]} 39... b6 {[%clk 0:00:19.5]} 40. cxb6+ {[%clk 0:00:07.8]}
40... axb6 {[%clk 0:00:18.4]} 41. a4 {[%clk 0:00:05.3]} 41... Kd6 {[%clk
0:00:17.9]} 42. Bb3 {[%clk 0:00:04.8]} 42... Ke7 {[%clk 0:00:15.8]} 43. Bc2
{[%clk 0:00:04.2]} 43... Kf6 {[%clk 0:00:14.8]} 44. g3 {[%clk 0:00:03.9]} 44...
Rd5 {[%clk 0:00:14]} 45. Ke3 {[%clk 0:00:03.4]} 45... Rd8 {[%clk 0:00:13.6]} 46.
Bd1 {[%clk 0:00:02.6]} 46... Rc8 {[%clk 0:00:13.2]} 47. Kd3 {[%clk 0:00:02.7]}
47... Bg6+ {[%clk 0:00:11.4]} 48. Kd2 {[%clk 0:00:03]} 48... Ke5 {[%clk
0:00:11.6]} 49. Bf3 {[%clk 0:00:02.8]} 49... Rf8 {[%clk 0:00:10.7]} 50. a5
{[%clk 0:00:03]} 50... bxa5 {[%clk 0:00:09.7]} 51. bxa5 {[%clk 0:00:03.9]} 51...
Be4 {[%clk 0:00:03.4]} 52. Bxe4 {[%clk 0:00:02.9]} 52... Kxe4 {[%clk 0:00:02.8]}
53. a6 {[%clk 0:00:03.8]} 53... Kd5 {[%clk 0:00:02.2]} 54. a7 {[%clk 0:00:03.7]}
1-0